[Event "American Cup Women Elimination 2024"]
[Site "Saint Louis"]
[Date "2024.03.16"]
[Round "2.5"]
[White "Paikidze, Nazi"]
[Black "Yu, Jennifer"]
[Result "1-0"]
[ECO "A30"]
[WhiteElo "2319"]
[BlackElo "2279"]
[Annotator "TA"]
[PlyCount "93"]
[EventDate "2024.03.11"]
[EventType "k.o."]
[EventCountry "USA"]
[SourceTitle "playchess.com"]
[Source "ChessBase"]
[SourceQuality "1"]
[TimeControl "600+5"]

{[%evp 12,93,-18,-13,21,12,44,23,21,0,0,0,-2,0,-7,0,4,11,47,45,52,44,53,33,48,35,60,0,0,0,0,0,0,0,0,0,0,-19,-8,-108,-118,-125,-85,-122,-125,-140,-122,-202,-192,-197,-181,-329,-327,-320,-304,-353,-323,-383,-382,-409,-404,-419,-221,-224,-184,-175,-190,-232,-130,-116,-9,-133,-8,-135,-10,-12,0,0,0,0,0,0,0,0]} 1. Nf3 {[%emt 0:07:07]} d5 {[%emt 0:07:07]} 2. b3 {[%emt 0:00:04]} Nf6 {[%emt 0:00:06]} 3. Bb2 {[%emt 0:00:04]} g6 {[%emt 0:00:05]} 4. e3 {[%emt 0:00:10]} Bg7 {[%emt 0:00:05]} 5. Be2 {[%emt 0:00:11]} O-O {[%emt 0:00:06]} 6. O-O {[%emt 0:00:12]} c5 {[%emt 0:00:11]} 7. c4 {[%emt 0:00:06]} e6 {[%emt 0:00:19]} 8. d4 {[%emt 0:00:11]} Ne4 {[%emt 0:00:08]} 9. Nbd2 {[%emt 0:00:14]} b6 {[%emt 0:00:28] White has an edge.} 10. Qc2 {[%emt 0:00:23]} Nxd2 {[%emt 0:00:12]} 11. Qxd2 {[%emt 0:00:06]} dxc4 {[%emt 0:00:08]} 12. bxc4 {[%emt 0:00:07]} Bb7 {[%emt 0:00:05]} 13. Rfd1 {[%emt 0:00:06]} Nd7 {[%emt 0:00:32]} 14. d5 {[%emt 0:00:16] Bxg7 would now be deadly.} exd5 {[%emt 0:00:09]} 15. Bxg7 {[%emt 0:00:14]} Kxg7 {[%emt 0:00:04]} 16. cxd5 {[%emt 0:00:04]} Qf6 {[%emt 0:00:11]} 17. Bb5 {[%emt 0:00:11]} Rad8 {[%emt 0:00:11]} 18. e4 {[%emt 0:00:04]} Ne5 {[%emt 0:00:15]} 19. Nxe5 {[%emt 0:00:07]} (19. Ne1 $14) 19... Qxe5 $11 {[%emt 0:00:04]} 20. Re1 {[%emt 0:00:12]} f5 {[%emt 0:00:26]} 21. f4 {[%emt 0:00:09]} Qd4+ {[%emt 0:00:12]} 22. Qxd4+ {[%emt 0:00:04]} cxd4 {[%emt 0:00:04]} 23. Rad1 {[%emt 0:00:37]} fxe4 {[%emt 0:00:07]} 24. Rxd4 {[%emt 0:00:03]} Rxd5 {[%emt 0:00:09]} 25. Rxd5 {[%emt 0:00:12]} (25. Rexe4 $1 $11 Rxb5 26. Re7+ Rf7 27. Rxf7+ Kxf7 28. Rd7+ Kf6 29. Rxb7) 25... Bxd5 {[%emt 0:00:04][%mdl 4096] Endgame. KRB-KRB} 26. g3 {[%emt 0:00:17]} Rf7 {[%emt 0:00:07]} (26... Bxa2 27. Ra1 Bd5 28. Rxa7+ Rf7 29. Rxf7+ Kxf7 (29... Bxf7 30. Kf2 $15) 30. Kf2 $11) 27. a3 {[%emt 0:00:06]} Rc7 {[%emt 0:00:07]} 28. Rd1 {[%emt 0:00:08]} Rc5 {[%emt 0:00:05]} 29. Be2 {[%emt 0:00:09]} (29. a4 $17 {keeps fighting.}) 29... Kf6 {[%emt 0:00:10]} 30. Kf2 {[%emt 0:00:06]} Ke6 {[%emt 0:00:07]} 31. Rd4 {[%emt 0:00:06]} (31. a4 {was worth a try.}) 31... Rc2 {[%emt 0:00:11]} 32. Ke1 {[%emt 0:00:15]} Kd6 {[%emt 0:00:12]} 33. Rd2 {[%emt 0:00:12]} Rc1+ {[%emt 0:00:11]} 34. Kf2 {[%emt 0:00:11]} Rc3 {[%emt 0:00:05] White must now prevent ...e3+.} 35. Ke1 {[%emt 0:00:11]} Kc5 {[%emt 0:00:05]} ({Don't do} 35... Rxa3 36. Bc4 Ra5 37. Bxd5 Rxd5 38. Ra2 $19) 36. a4 {[%emt 0:00:04]} Bc4 {[%emt 0:00:07]} (36... e3 $142 37. Rd3 Rc1+ 38. Rd1 Rxd1+ 39. Bxd1 Kd4) 37. Bxc4 $19 {[%emt 0:00:05]} Kxc4 {[%emt 0:00:04] KR-KR} 38. Rd7 {[%emt 0:00:04][%cal Oe1e2]} a5 {[%emt 0:00:07]} 39. Ke2 {[%emt 0:00:05]} Rc2+ {[%emt 0:00:07]} ({Black should try} 39... Kb4 $1 $19 {[%cal Rb4a4]} 40. Rd6 b5 (40... Kxa4 41. Rxb6 Ka3 42. Kd2 $15) 41. axb5 Kxb5) 40. Ke3 $17 {[%emt 0:00:04] [#]} Rxh2 (40... Kb4 $1 $17 {[%cal Rb4a4]} 41. Rd4+ Kc5) 41. Kxe4 {[#]} (41. g4 $1 $11 {was the only way to keep the balance.}) 41... Kb3 {[%emt 0:00:09]} (41... Kb4 $1 $17 {[%cal Rb4a4]} 42. Rb7 Re2+ (42... Kxa4 43. Rxb6 Rh3 44. Kf3 $11) 43. Kf3 Re6 44. Rxh7 Kxa4) 42. Rb7 {[%emt 0:00:08]} (42. Rd6 $11 {remains equal.}) 42... Kxa4 {[%emt 0:00:05]} ({Better is} 42... Re2+ $17 43. Kf3 Re6 44. Rxh7 Rc6 (44... Kxa4 $2 45. Rh4 $19)) 43. Rxb6 $11 {[%emt 0:00:03] The position is equal.} Ka3 {[%emt 0:00:05] ...Re2+ is the strong threat.} 44. g4 {[%emt 0:00:07]} a4 {[%emt 0:00:06]} 45. f5 {[%emt 0:00:05]} gxf5+ {[%emt 0:00:05]} 46. gxf5 {[%emt 0:00:07]} Ka2 {[%emt 0:00:07]} 47. Kf4 {[%emt 0:00:10][%mdl 32768] And White is the lucky defender.   Weighted Error Value: White=0.28 (precise) /Black=0.30.  Mistake:       	White=6     	Black=5      Inaccurate:     	White=1     	Black=3      OK:         	White=12    	Black=15     Best:        	White=5     	Black=1     . Sensor Board Error (Ke4/e5)?} 1-0

[Event "American Cup Women Elimination 2024"]
[Site "Saint Louis"]
[Date "2024.03.16"]
[Round "2.6"]
[White "Yu, Jennifer"]
[Black "Paikidze, Nazi"]
[Result "1-0"]
[ECO "E90"]
[WhiteElo "2279"]
[BlackElo "2319"]
[Annotator "TA"]
[PlyCount "169"]
[EventDate "2024.03.11"]
[EventType "k.o."]
[EventCountry "USA"]
[SourceTitle "playchess.com"]
[Source "ChessBase"]
[SourceQuality "1"]
[TimeControl "600+5"]

{[%evp 13,169,29,31,21,31,6,52,9,18,-21,-18,0,10,-15,-16,-81,0,-73,-35,-69,0,-14,54,56,55,57,66,0,44,41,82,48,264,246,261,147,131,0,0,-51,-58,-208,-219,-214,-196,-217,-108,-256,182,181,207,197,207,207,199,204,168,86,227,227,227,227,222,178,236,178,178,178,219,178,192,181,221,207,200,200,192,185,664,588,949,350,610,778,864,1222,5081,4935,1877,3791,12753,12753,12753,1614,1592,0,12753,1758,1520,1365,1402,1310,1329,1301,1510,1236,1282,24,24,0,0,0,11134,1321,1321,1321,1268,0,1302,1068,800,556,29943,29949,29951,29949,29951,29954,29974,29963,29963,29966,29968,29967,29971,29972,29980,29955,29980,29981,29987,29988,29988,29989,29989,29990,29995,29996,29996,29991,29997,29993,29993,29992,29992,29987,29988,29987]} 1. d4 {[%emt 0:07:06]} Nf6 {[%emt 0:07:07]} 2. c4 {[%emt 0:00:04]} d6 {[%emt 0:00:03]} 3. Nc3 {[%emt 0:00:05]} Nbd7 {[%emt 0:00:04]} 4. e4 {[%emt 0:00:04]} g6 {[%emt 0:00:09]} 5. Nf3 {[%emt 0:00:11]} Bg7 {[%emt 0:00:08]} 6. Bd3 {[%emt 0:00:14]} e5 {[%emt 0:00:14]} 7. O-O {[%emt 0:00:10]} O-O {[%emt 0:00:04]} 8. Bc2 {[%emt 0:00:14]} c6 {[%emt 0:00:10]} 9. b3 {[%emt 0:00:16]} Re8 {[%emt 0:00:04]} (9... exd4 $11 10. Nxd4 d5) 10. Bb2 {[%emt 0:00:08] Weiß steht etwas besser.} Nh5 {[%emt 0:00:23]} 11. Ne2 {[%emt 0:00:18]} exd4 {[%emt 0:00:10]} 12. Bxd4 {[%emt 0:00:06]} Ne5 {[%emt 0:00:07]} 13. Nxe5 {[%emt 0:00:16]} dxe5 {[%emt 0:00:03]} 14. Bc5 {[%emt 0:00:25]} (14. Be3 $11) 14... b6 {[%emt 0:00:09]} (14... Qg5 $1 $17 {Weiss muss nun ...Nf4 beachten.} 15. Kh1 Rd8) 15. Bd6 {[%emt 0:00:10]} (15. Qxd8 $11 {hält das Gleichgewicht.} Rxd8 16. Be3) 15... Bb7 {[%emt 0:00:26]} 16. c5 {[%emt 0:00:20]} Qd7 {[%emt 0:00:03]} ({Besser ist} 16... bxc5 $15 17. Bxc5 Ba6) 17. b4 {[%emt 0:00:14] [#]} Nf4 {[%emt 0:00:10]} 18. Nxf4 $14 {[%emt 0:00:09]} exf4 {[%emt 0:00:04]} 19. Bxf4 {[%emt 0:00:13]} Qe6 {[%emt 0:00:11] [#]} 20. e5 {[%emt 0:00:18]} Rad8 {[%emt 0:00:05]} 21. Qf3 {[%emt 0:00:07]} Rd4 {[%emt 0:00:10]} 22. Rad1 {[%emt 0:00:19]} Red8 {[%emt 0:00:27]} (22... bxc5 $1 $14 23. Bb3 (23. bxc5 Bxe5 24. Bb3 Qf5 $14) 23... Qf5) 23. Rxd4 {[%emt 0:00:08]} Rxd4 {[%emt 0:00:03]} 24. cxb6 {[%emt 0:00:08]} (24. Bb3 $18 Qf5 25. Be3 Qxf3 26. gxf3 bxc5 (26... Rxb4 $2 27. Rd1 $18) 27. Bxd4 (27. bxc5 Rd8 $18) 27... cxd4 28. f4) 24... axb6 $16 {[%emt 0:00:06]} 25. a3 {[%emt 0:00:07]} (25. Bb3 $16 Qd7 (25... Qf5 26. Be3 $14) 26. Qe3) 25... Bxe5 $11 {[%emt 0:00:10]} 26. Bb3 {[%emt 0:00:04]} (26. Bxe5 $11 Qxe5 27. b5 Qxb5 28. Re1) 26... Rxf4 $15 {[%emt 0:00:24]} 27. Bxe6 {[%emt 0:00:05]} (27. Qxf4 $15 Bxf4 (27... Qxb3 $2 28. Qxe5 Ba6 29. Re1 $18) 28. Bxe6 fxe6 29. Rd1) 27... Rxf3 $19 {[%emt 0:00:04]} 28. gxf3 {[%emt 0:00:04][%cal Of1d1] Droht Rd1! und aus.} fxe6 {[%emt 0:00:04]} 29. Re1 {[%emt 0:00:03]} Bb2 {[%emt 0:00:08]} (29... Bf6 $19 {...Kf7 ist eine echte Drohung.} 30. Rd1 c5) 30. Rxe6 {[%emt 0:00:07]} (30. Rd1 $17 {war erzwungen.} Ba6 (30... Bxa3 31. Rd8+ Kg7 32. Rd7+ Kf6 33. Rxb7 $16) 31. a4) 30... Bxa3 $4 {[%emt 0:00:04][%mdl 8192]} (30... Kf7 $19 {vermeidet das Desaster.} 31. Re1 Bc3 (31... Bxa3 32. Ra1 $11)) 31. Re7 $18 {[%emt 0:00:02]} Ba6 {[%emt 0:00:07]} 32. Ra7 {[%emt 0:00:06]} Bxb4 {[%emt 0:00:05]} 33. Rxa6 {[%emt 0:00:04][%mdl 4096] Endspiel. KR-KB} Bc5 {[%emt 0:00:05]} 34. Kf1 {[%emt 0:00:04]} Bd4 {[%emt 0:00:06]} 35. Ra7 {[%emt 0:00:07]} ({Vorzuziehen ist} 35. Ke2 $18) 35... c5 {[%emt 0:00:13]} (35... b5 $16 {war einen Versuch wert.} 36. Rb7 g5) 36. Rb7 {[%emt 0:00:13]} c4 {[%emt 0:00:06]} 37. Ke2 {[%emt 0:00:06]} Bc5 {[%emt 0:00:06]} 38. f4 {[%emt 0:00:07]} Bd4 {[%emt 0:00:06]} (38... Bd6 $142 39. Kf3 (39. Rxb6 Bxf4 40. h3 c3 $16) 39... Bc5) 39. Kf3 {[%emt 0:00:04]} Bc5 {[%emt 0:00:07] [#]} 40. Rc7 $1 {[%emt 0:00:09]} Kh8 {[%emt 0:00:08]} 41. Ke4 {[%emt 0:00:07]} c3 {[%emt 0:00:08][%cal Oc3c2]} 42. Kd3 {[%emt 0:00:05]} Bxf2 {[%emt 0:00:05]} 43. Rxc3 {[%emt 0:00:07]} ({Jedoch nicht} 43. Kxc3 $6 Be3 $16) 43... Bc5 {[%emt 0:00:04]} 44. Ke4 {[%emt 0:00:06]} Kg7 {[%emt 0:00:04]} 45. Rd3 {[%emt 0:00:04]} Kf6 $2 {[%emt 0:00:06]} (45... Bb4 46. Rd7+ Kh6) 46. Rd7 {[%emt 0:00:03]} h5 {[%emt 0:00:04]} 47. h3 {[%emt 0:00:05] Droht stark Rc7.} Ke6 $2 {[%emt 0:00:06]} (47... g5 48. Rd5 gxf4 49. Kxf4 (49. Rxh5 Kg6 $18) 49... h4) 48. Rg7 {[%emt 0:00:05]} Kf6 {[%emt 0:00:04]} 49. Rc7 {[%emt 0:00:04]} Ke6 {[%emt 0:00:10]} 50. Rc6+ {[%emt 0:00:04]} Kf7 {[%emt 0:00:09]} 51. Ke5 {[%emt 0:00:04]} Kg7 {[%emt 0:00:08]} 52. Rc7+ {[%emt 0:00:06]} Kh6 {[%emt 0:00:05]} 53. Rb7 {[%emt 0:00:09]} (53. Kf6 $142 Bd4+ 54. Kf7) 53... Be3 {[%emt 0:00:07]} 54. Rc7 $2 {[%emt 0:00:07]} (54. Rd7 $18 {Und Rd3 würde nun gewinnen.} Bf2 55. Rd6) 54... Bf2 $2 {[%emt 0:00:09][%mdl 8192]} (54... Bc5 $11) 55. Rc6 {[%emt 0:00:05]} (55. Kf6 $142 Bh4+ 56. Kf7) 55... Kg7 {[%emt 0:00:04]} 56. Ke6 {[%emt 0:00:05] Und jetzt Rc7+ wäre schön.} Be3 {[%emt 0:00:04]} 57. Rc7+ {[%emt 0:00:05]} Kh6 {[%emt 0:00:05]} 58. Rf7 {[%emt 0:00:05]} Bd4 {[%emt 0:00:06]} 59. Kd5 {[%emt 0:00:04]} Be3 {[%emt 0:00:05]} 60. Rf6 $2 {[%emt 0:00:05]} ({Günstiger ist} 60. Ke4 $18 Bf2 61. Rd7) 60... Kg7 $1 $11 {[%emt 0:00:04]} 61. Ke6 $2 {[%emt 0:00:04][%mdl 8192]} (61. Rc6 $11) 61... Bd4 $1 $18 {[%emt 0:00:06]} 62. Rf7+ {[%emt 0:00:05]} Kh6 {[%emt 0:00:04] Weiß verwandelt nun seinen Vorteil.} 63. Rf8 {[%emt 0:00:05] Droht Matt per Kf7.} Kg7 {[%emt 0:00:05]} 64. Rc8 {[%emt 0:00:05]} Be3 {[%emt 0:00:05]} 65. Rc7+ {[%emt 0:00:04]} Kh6 $1 {[%emt 0:00:04]} 66. f5 {[%emt 0:00:05]} gxf5 {[%emt 0:00:05]} 67. Kxf5 {[%emt 0:00:04]} Bc5 {[%emt 0:00:07] Es drohte Re7} 68. h4 {[%emt 0:00:07] Weiß setzt Matt.} Bf2 {[%emt 0:00:07]} 69. Rc6+ {[%emt 0:00:04]} Kg7 {[%emt 0:00:04]} 70. Kg5 {[%emt 0:00:04]} Bd4 {[%emt 0:00:09]} 71. Kxh5 {[%emt 0:00:05]} Be3 {[%emt 0:00:06]} 72. Kg4 {[%emt 0:00:05]} Kh7 {[%emt 0:00:03]} 73. Kf5 {[%emt 0:00:05]} Kg7 {[%emt 0:00:06]} 74. Re6 {[%emt 0:00:05]} Bd4 {[%emt 0:00:06]} 75. Kg5 {[%emt 0:00:04]} Bc5 {[%emt 0:00:05]} 76. h5 {[%emt 0:00:05]} Kh7 {[%emt 0:00:05]} 77. h6 {[%emt 0:00:06]} Bb4 {[%emt 0:00:08]} 78. Rxb6 {[%emt 0:00:07]} Bd2+ {[%emt 0:00:05]} 79. Kh5 {[%emt 0:00:03]} Be3 {[%emt 0:00:04]} 80. Rb7+ {[%emt 0:00:04]} Kg8 {[%emt 0:00:10]} 81. Kg6 {[%emt 0:00:04][%cal Rb7b8]} Bf4 {[%emt 0:00:05]} 82. Rd7 {[%emt 0:00:06][%cal Rd7d8]} Kf8 {[%emt 0:00:13]} 83. h7 {[%emt 0:00:06][%cal Rh7h8]} Be5 {[%emt 0:00:04]} 84. Rd8+ {[%emt 0:00:06]} Ke7 {[%emt 0:00:03]} 85. h8=Q {[%emt 0:00:05] Gewichteter Fehlerwert: Weiß=0.57/Schwarz=0.77.  Verlustzug:     	---       	Schwarz=1     Gewinn verpasst:   	---       	Schwarz=1     Fehler:       	Weiß=9     	Schwarz=9     Ungenau:       	Weiß=4     	Schwarz=4     OK:         	Weiß=10    	Schwarz=9     Bester:       	Weiß=5     	Schwarz=7     Stark:        	---       	Schwarz=1} ({Minderwertig wäre} 85. h8=B Kxd8 $11) 1-0

[Event "American Cup Women Elimination 2024"]
[Site "Saint Louis"]
[Date "2024.03.16"]
[Round "2.7"]
[White "Yu, Jennifer"]
[Black "Paikidze, Nazi"]
[Result "1-0"]
[ECO "D38"]
[WhiteElo "2279"]
[BlackElo "2319"]
[Annotator "TA"]
[PlyCount "69"]
[EventDate "2024.03.11"]
[EventType "k.o."]
[EventCountry "USA"]
[SourceTitle "playchess.com"]
[Source "ChessBase"]
[SourceQuality "1"]
[TimeControl "600+5"]

{[%evp 14,69,20,20,18,-6,13,0,10,12,144,132,321,305,308,322,372,368,393,382,419,428,513,475,537,552,538,530,536,550,531,530,698,695,770,595,598,600,584,564,557,525,518,516,628,641,648,648,712,705,693,655,763,739,749,733,29989,29990]} 1. d4 {[%emt 0:07:06]} Nf6 {[%emt 0:07:06]} 2. c4 {[%emt 0:00:01]} e6 3. Nf3 {[%emt 0:00:07]} Bb4+ {[%emt 0:00:08]} 4. Nc3 {[%emt 0:00:04]} d5 {[%emt 0:00:07]} 5. Bg5 {[%emt 0:00:05]} h6 {[%emt 0:00:04]} 6. Bxf6 {[%emt 0:00:05]} Qxf6 {[%emt 0:00:04]} 7. Qb3 {[%emt 0:00:06]} c5 {[%emt 0:00:03]} 8. e3 {[%emt 0:00:07]} O-O {[%emt 0:00:12]} 9. Be2 {[%emt 0:00:26]} (9. cxd5 {simplifies} exd5 10. dxc5 Bxc3+ 11. Qxc3 Qxc3+ 12. bxc3 Nd7 13. Rd1) 9... dxc4 {[%emt 0:00:11]} (9... cxd4 {simplifies} 10. Nxd4 Bxc3+ 11. Qxc3 dxc4 12. Bxc4 b6) 10. Qxc4 {[%emt 0:00:05]} (10. Bxc4 {simplifies} cxd4 11. Nxd4 Bxc3+ 12. Qxc3 Bd7 13. Nb5) 10... b6 {[%emt 0:00:14] The position is equal.} 11. O-O {[%emt 0:00:23]} Ba6 {[%emt 0:00:07] [#]} (11... Bb7 $11) 12. Nb5 $1 $16 {[%emt 0:00:08]} Nc6 $2 {[%emt 0:00:18]} (12... Ba5 $16) 13. a3 $18 {[%emt 0:00:11]} Ba5 {[%emt 0:00:24] [#]} 14. b4 $1 {[%emt 0:00:06][%mdl 512]} cxb4 {[%emt 0:00:06]} (14... Nxb4 15. axb4) 15. Qxc6 {[%emt 0:00:08]} Rac8 {[%emt 0:00:10][%cal Ba8c8,Bc8c3,Bc3a3][%mdl 32]} 16. Qe4 {[%emt 0:00:10]} b3 {[%emt 0:00:15]} 17. Bd3 {[%emt 0:00:12]} g6 {[%emt 0:00:04]} 18. Nxa7 {[%emt 0:00:18]} Bxd3 19. Qxd3 {[%emt 0:00:04]} Rc3 {[%emt 0:00:22]} 20. Qe4 {[%emt 0:00:11]} b2 {[%emt 0:00:06]} 21. Rab1 {[%emt 0:00:05]} Rxa3 {[%emt 0:00:11]} 22. Rxb2 {[%emt 0:00:10]} Rc3 {[%emt 0:00:23]} 23. Ne5 {[%emt 0:00:17]} Qf5 {[%emt 0:00:20]} 24. Qxf5 {[%emt 0:00:08]} gxf5 {[%emt 0:00:04]} 25. Nb5 {[%emt 0:00:20] Wards off Rc7} Rcc8 {[%emt 0:00:09]} 26. Nd6 {[%emt 0:00:08]} Rc7 {[%emt 0:00:07]} 27. Ndc4 {[%emt 0:00:29]} f6 {[%emt 0:00:08]} 28. Nxa5 {[%emt 0:00:05]} fxe5 {[%emt 0:00:07]} 29. Rxb6 {[%emt 0:00:06]} exd4 {[%emt 0:00:06]} 30. exd4 {[%emt 0:00:04]} Kf7 {[%emt 0:00:08]} 31. Nc6 {[%emt 0:00:10]} Rfc8 {[%emt 0:00:09]} 32. Ne5+ {[%emt 0:00:05]} Kf6 {[%emt 0:00:06]} 33. f4 {[%emt 0:00:09] d5 is the strong threat.} Rd8 {[%emt 0:00:07]} 34. Rd1 {[%emt 0:00:05] And now d5 would win.} Rc2 {[%emt 0:00:07]} 35. Rb7 {[%emt 0:00:06] Black did not feel at home in the position after the opening.   Weighted Error Value: White=0.15 (very precise) /Black=0.52.  Loses game:     	---       	Black=1      Mistake:       	---       	Black=1      Inaccurate:     	---       	Black=1      OK:         	White=10    	Black=6      Best:        	White=1     	---        Strong:       	White=1     	---        Brilliant:      	White=1     	---} 1-0

[Event "American Cup Women Elimination 2024"]
[Site "Saint Louis"]
[Date "2024.03.16"]
[Round "2.8"]
[White "Paikidze, Nazi"]
[Black "Yu, Jennifer"]
[Result "1-0"]
[ECO "A06"]
[WhiteElo "2319"]
[BlackElo "2279"]
[Annotator "TA"]
[PlyCount "70"]
[EventDate "2024.03.11"]
[EventType "k.o."]
[EventCountry "USA"]
[SourceTitle "playchess.com"]
[Source "ChessBase"]
[SourceQuality "1"]
[TimeControl "600+5"]

{[%evp 9,70,19,26,10,8,5,8,2,7,0,6,0,25,-4,0,0,0,0,23,0,0,-62,-70,-262,-273,-350,-353,-447,-423,-608,-518,-517,-493,-518,-516,-491,-484,-550,-555,-558,-522,-554,-566,-602,-524,-580,-42,-502,-247,-247,-250,-269,-268,-260,431,431,431,-447,-120,-149,0,-135,354]} 1. Nf3 {[%emt 0:07:07]} d5 {[%emt 0:07:07]} 2. b3 {[%emt 0:00:03]} Nf6 {[%emt 0:00:06]} 3. Bb2 {[%emt 0:00:04]} g6 {[%emt 0:00:07]} 4. e3 {[%emt 0:00:03]} Bg7 {[%emt 0:00:04]} 5. c4 {[%emt 0:00:07]} e6 {[%emt 0:00:10]} 6. Nc3 {[%emt 0:00:17]} O-O {[%emt 0:00:06]} 7. d4 {[%emt 0:00:04]} b6 {[%emt 0:00:07]} 8. Be2 {[%emt 0:00:06] The position is equal.} Bb7 {[%emt 0:00:05]} 9. O-O {[%emt 0:00:05]} Nbd7 {[%emt 0:00:07]} 10. Rc1 {[%emt 0:00:05]} Ne4 {[%emt 0:00:10]} 11. Nxe4 {[%emt 0:00:08]} dxe4 {[%emt 0:00:04]} 12. Nd2 {[%emt 0:00:04]} c5 {[%emt 0:00:25]} 13. Qc2 {[%emt 0:00:11]} cxd4 {[%emt 0:00:10]} 14. exd4 {[%emt 0:00:23]} f5 {[%emt 0:00:10]} 15. Rfd1 {[%emt 0:00:19]} (15. c5 $11) 15... Qg5 {[%emt 0:00:18]} 16. Nf1 $2 {[%emt 0:00:07]} (16. d5 $15) 16... f4 $19 {[%emt 0:00:13]} 17. d5 {[%emt 0:00:17]} f3 {[%emt 0:00:22]} (17... exd5 18. h4 Qxh4 19. Bxg7 Kxg7 20. cxd5 $17) 18. Bxf3 {[%emt 0:00:07]} exf3 {[%emt 0:00:04][%csl Gf3][%cal Rg5g2]} 19. Ng3 {[%emt 0:00:21]} (19. g3 $142 e5 (19... exd5 $2 20. Bxg7 Kxg7 21. cxd5 $19) 20. Ba3) 19... exd5 {[%emt 0:00:22]} 20. Bxg7 {[%emt 0:00:05]} Kxg7 {[%emt 0:00:05]} 21. cxd5 Rac8 {[%emt 0:00:20] Repels Qc7} 22. Qb2+ {[%emt 0:00:08]} Qf6 {[%emt 0:00:26]} 23. Qd2 {[%emt 0:00:08]} fxg2 {[%emt 0:00:11]} 24. Rxc8 {[%emt 0:00:18]} Rxc8 {[%emt 0:00:05]} 25. Ne4 {[%emt 0:00:10]} Qe5 {[%emt 0:00:09]} 26. Ng5 {[%emt 0:00:05]} Nf8 {[%emt 0:00:14]} 27. Re1 {[%emt 0:00:04]} Qf6 {[%emt 0:00:08]} (27... Qxd5 $19 28. Qe3 Kg8) 28. d6 $2 {[%emt 0:00:12][%mdl 8192]} (28. Ne4 $1 $15 Qe5 29. Nc3 Qxc3 30. Re7+ Kf6 31. Qxc3+ Rxc3 32. Rxb7) 28... h6 {[%emt 0:00:06]} (28... Rd8 $142 29. Ne4 (29. Re7+ $2 Qxe7 30. dxe7 Rxd2 $19) 29... Bxe4 30. Rxe4 Rxd6) 29. Re7+ {[%emt 0:00:07]} Kg8 {[%emt 0:00:13]} 30. Nf7 {[%emt 0:00:25] Prevents Qxd6} Qa1+ {[%emt 0:00:11]} 31. Re1 {[%emt 0:00:06] [#]} Qxe1+ $4 {[%emt 0:00:09][%mdl 8192]} 32. Qxe1 $18 {[%emt 0:00:04]} Kxf7 {[%emt 0:00:04] [#]} 33. f3 $4 {[%emt 0:00:15][%mdl 8192]} Re8 $2 {[%emt 0:00:06]} (33... Bxf3 $19 {is more deadly. And now ...Ne6 would win.} 34. Qe3 Bd5) 34. Qc3 {[%emt 0:00:07]} Rc8 {[%emt 0:00:08] Dodges Qc7+} (34... Rd8 $17 35. Qd2 Ne6 (35... Bxf3 36. Qf4+ Kg7 37. Qe5+ Kg8 38. Qf6 $11) 36. Kxg2 Ba8) 35. Qd2 {[%emt 0:00:09]} (35. Qe1 $1 $11 {was the only way to keep the balance.} Bxf3 (35... Re8 36. Qc3 $17) 36. Qd2) 35... Rc6 $2 {[%emt 0:00:03][%mdl 8192] Weighted Error Value: White=0.83/Black=0.90.  Loses game:     	White=2     	Black=1      Missed win:     	White=1     	Black=2      Mistake:       	White=3     	Black=2      Inaccurate:     	White=1     	Black=1      OK:         	White=9     	Black=12     Best:        	White=3     	Black=2} (35... Bxf3 36. Qf4+ (36. Qxh6 $2 {loses.} Rc5 $19) 36... Ke6 37. Qxf3 Kxd6 38. Qf6+ (38. Qxg2 $2 Rc1+ 39. Kf2 Rc2+ 40. Kg3 Rxg2+ $19) (38. Kxg2 Ne6 $16) 38... Kd5 39. Qg7 $16 (39. Kxg2 Ne6 $16)) (35... Ne6 $17 {keeps the pressure on.} 36. Kxg2 h5) 1-0